[Event "Titled Tuesday Blitz January 03 Early 2023"]
[White "Cella, Glaucio Dalla Cortt"]
[Black "Le Ruyet, Leopold"]
[WhiteFideId "2119455"]
[BlackFideId "645923"]
[WhiteElo "1894"]
[BlackElo "2245"]
[Result "1/2-1/2"]
[Round "11"]
[TimeControl "180+2"]
[Date "2023.01.03"]
[WhiteClock "0:00:04"]
[BlackClock "0:00:04"]

1. e4 {[%clk 0:02:56]}  d6 {[%clk 0:02:59]} 2. Nf3 {[%clk 0:02:57]}  Nf6 {[%clk 0:02:59]} 3. Nc3 {[%clk 0:02:54]}  e5 {[%clk 0:03:00]} 4. Bc4 {[%clk 0:02:54]}  Be7 {[%clk 0:02:59]} 5. h3 {[%clk 0:02:54]}  O-O {[%clk 0:02:59]} 6. g4 {[%clk 0:02:55]}  c6 {[%clk 0:02:53]} 7. d3 {[%clk 0:02:55]}  d5 {[%clk 0:02:47]} 8. Bb3 {[%clk 0:02:44]}  dxe4 {[%clk 0:02:47]} 9. Nxe4 {[%clk 0:02:44]}  Nxe4 {[%clk 0:02:47]} 10. dxe4 {[%clk 0:02:45]}  Qxd1+ {[%clk 0:02:44]} 11. Kxd1 {[%clk 0:02:46]}  Bd6 {[%clk 0:02:33]} 12. Be3 {[%clk 0:02:40]}  a5 {[%clk 0:02:30]} 13. a4 {[%clk 0:02:37]}  Na6 {[%clk 0:02:25]} 14. Ke2 {[%clk 0:02:07]}  Nc5 {[%clk 0:02:10]} 15. Bxc5 {[%clk 0:02:02]}  Bxc5 {[%clk 0:02:10]} 16. Nxe5 {[%clk 0:02:03]}  Bd4 {[%clk 0:02:02]} 17. Nd3 {[%clk 0:01:59]}  Re8 {[%clk 0:01:59]} 18. c3 {[%clk 0:01:37]}  Ba7 {[%clk 0:01:44]} 19. e5 {[%clk 0:01:34]}  Bb8 {[%clk 0:01:34]} 20. f4 {[%clk 0:01:34]}  g5 {[%clk 0:01:24]} 21. fxg5 {[%clk 0:01:23]}  Bxe5 {[%clk 0:01:18]} 22. Kf3 {[%clk 0:01:23]}  Bd6 {[%clk 0:01:08]} 23. Rae1 {[%clk 0:01:20]}  Be6 {[%clk 0:01:08]} 24. Bxe6 {[%clk 0:01:14]}  fxe6 {[%clk 0:01:06]} 25. Re4 {[%clk 0:01:15]}  Rf8+ {[%clk 0:01:03]} 26. Ke2 {[%clk 0:01:12]}  Rae8 {[%clk 0:01:01]} 27. h4 {[%clk 0:01:06]}  b5 {[%clk 0:00:51]} 28. axb5 {[%clk 0:00:58]}  cxb5 {[%clk 0:00:51]} 29. Rh3 {[%clk 0:00:59]}  Rf7 {[%clk 0:00:38]} 30. Rhe3 {[%clk 0:00:53]}  Rfe7 {[%clk 0:00:33]} 31. Nf4 {[%clk 0:00:53]}  Bxf4 {[%clk 0:00:32]} 32. Rxf4 {[%clk 0:00:53]}  e5 {[%clk 0:00:22]} 33. Rf5 {[%clk 0:00:47]}  a4 {[%clk 0:00:21]} 34. Kf3 {[%clk 0:00:43]}  b4 {[%clk 0:00:16]} 35. cxb4 {[%clk 0:00:40]}  Rb7 {[%clk 0:00:17]} 36. Rexe5 {[%clk 0:00:35]}  Rxe5 {[%clk 0:00:16]} 37. Rxe5 {[%clk 0:00:36]}  Rxb4 {[%clk 0:00:16]} 38. Re2 {[%clk 0:00:28]}  Rb3+ {[%clk 0:00:16]} 39. Kf4 {[%clk 0:00:26]}  a3 {[%clk 0:00:17]} 40. bxa3 {[%clk 0:00:25]}  Rxa3 {[%clk 0:00:18]} 41. h5 {[%clk 0:00:20]}  Ra4+ {[%clk 0:00:17]} 42. Kg3 {[%clk 0:00:21]}  Kg7 {[%clk 0:00:15]} 43. Re7+ {[%clk 0:00:20]}  Kg8 {[%clk 0:00:16]} 44. Kh4 {[%clk 0:00:20]}  Ra1 {[%clk 0:00:15]} 45. g6 {[%clk 0:00:19]}  hxg6 {[%clk 0:00:15]} 46. hxg6 {[%clk 0:00:20]}  Ra5 {[%clk 0:00:14]} 47. Rb7 {[%clk 0:00:17]}  Rc5 {[%clk 0:00:13]} 48. Re7 {[%clk 0:00:17]}  Ra5 {[%clk 0:00:13]} 49. Rf7 {[%clk 0:00:17]}  Rb5 {[%clk 0:00:10]} 50. Rf5 {[%clk 0:00:17]}  Rb1 {[%clk 0:00:09]} 51. Kg5 {[%clk 0:00:17]}  Ra1 {[%clk 0:00:09]} 52. Rb5 {[%clk 0:00:17]}  Rc1 {[%clk 0:00:08]} 53. Rb7 {[%clk 0:00:15]}  Rc5+ {[%clk 0:00:07]} 54. Kh6 {[%clk 0:00:15]}  Rc8 {[%clk 0:00:05]} 55. Rg7+ {[%clk 0:00:15]}  Kh8 {[%clk 0:00:04]} 56. Rh7+ {[%clk 0:00:13]}  Kg8 {[%clk 0:00:04]} 57. g5 {[%clk 0:00:12]}  Ra8 {[%clk 0:00:03]} 58. g7 {[%clk 0:00:09]}  Ra6+ {[%clk 0:00:03]} 59. g6 {[%clk 0:00:09]}  Rxg6+ {[%clk 0:00:04]} 60. Kxg6 {[%clk 0:00:04]} 1/2-1/2


[Site "https://www.chess.com"]

[Event "Titled Tuesday Blitz January 03 Early 2023"]
[White "Ezat, Mohamed"]
[Black "Moreno Perez, Tobias Sebastian"]
[WhiteFideId "10600906"]
[BlackFideId "186716"]
[WhiteElo "2402"]
[BlackElo "2256"]
[Result "1-0"]
[Round "11"]
[TimeControl "180+2"]
[Date "2023.01.03"]
[WhiteClock "0:00:15"]
[BlackClock "0:00:01"]

1. e4 {[%clk 0:03:00]}  c6 {[%clk 0:02:59]} 2. Nf3 {[%clk 0:02:58]}  d5 {[%clk 0:02:59]} 3. exd5 {[%clk 0:02:58]}  cxd5 {[%clk 0:03:00]} 4. d4 {[%clk 0:02:58]}  Nf6 {[%clk 0:02:57]} 5. Ne5 {[%clk 0:02:59]}  g6 {[%clk 0:02:56]} 6. Bb5+ {[%clk 0:02:57]}  Nbd7 {[%clk 0:02:52]} 7. O-O {[%clk 0:02:47]}  Bg7 {[%clk 0:02:51]} 8. Re1 {[%clk 0:02:47]}  O-O {[%clk 0:02:50]} 9. Bg5 {[%clk 0:02:46]}  Nb6 {[%clk 0:02:43]} 10. Nc3 {[%clk 0:02:44]}  Be6 {[%clk 0:02:37]} 11. a4 {[%clk 0:02:40]}  Rc8 {[%clk 0:02:34]} 12. a5 {[%clk 0:02:38]}  a6 {[%clk 0:02:24]} 13. Bd3 {[%clk 0:02:30]}  Nc4 {[%clk 0:02:21]} 14. Bxc4 {[%clk 0:02:23]}  dxc4 {[%clk 0:02:22]} 15. Qd2 {[%clk 0:01:56]}  Re8 {[%clk 0:02:16]} 16. h3 {[%clk 0:01:47]}  Nd5 {[%clk 0:02:16]} 17. Nxd5 {[%clk 0:01:45]}  Qxd5 {[%clk 0:02:17]} 18. Bf4 {[%clk 0:01:35]}  Red8 {[%clk 0:01:57]} 19. c3 {[%clk 0:01:35]}  Qb5 {[%clk 0:01:53]} 20. Qe2 {[%clk 0:01:32]}  Bd5 {[%clk 0:01:49]} 21. Bg3 {[%clk 0:01:27]}  Re8 {[%clk 0:01:14]} 22. Ng4 {[%clk 0:01:22]}  h5 {[%clk 0:01:07]} 23. Ne3 {[%clk 0:01:16]}  e6 {[%clk 0:00:56]} 24. Be5 {[%clk 0:01:05]}  Bxe5 {[%clk 0:00:54]} 25. dxe5 {[%clk 0:01:05]}  Be4 {[%clk 0:00:54]} 26. g4 {[%clk 0:01:02]}  Bd3 {[%clk 0:00:22]} 27. Qf3 {[%clk 0:01:01]}  Qc6 {[%clk 0:00:22]} 28. Qf4 {[%clk 0:00:57]}  h4 {[%clk 0:00:15]} 29. f3 {[%clk 0:00:40]}  Red8 {[%clk 0:00:12]} 30. g5 {[%clk 0:00:36]}  Bf5 {[%clk 0:00:11]} 31. Nxf5 {[%clk 0:00:36]}  exf5 {[%clk 0:00:12]} 32. e6 {[%clk 0:00:36]}  fxe6 {[%clk 0:00:11]} 33. Re3 {[%clk 0:00:32]}  Rd2 {[%clk 0:00:10]} 34. Rae1 {[%clk 0:00:29]}  Qc5 {[%clk 0:00:05]} 35. Qxh4 {[%clk 0:00:27]}  Rcd8 {[%clk 0:00:05]} 36. Qh6 {[%clk 0:00:26]}  Qc7 {[%clk 0:00:01]} 37. Qxg6+ {[%clk 0:00:24]}  Kh8 {[%clk 0:00:01]} 38. Qh6+ {[%clk 0:00:18]}  Kg8 {[%clk 0:00:01]} 39. Qxe6+ {[%clk 0:00:15]} 1-0


[Site "https://www.chess.com"]

[Event "Titled Tuesday Blitz January 03 Early 2023"]
[White "Mei, Austin"]
[Black "Viskelis, Darius"]
[WhiteFideId "30948479"]
[BlackFideId "12800830"]
[WhiteElo "2218"]
[BlackElo "2166"]
[Result "1-0"]
[Round "11"]
[TimeControl "180+2"]
[Date "2023.01.03"]
[WhiteClock "0:00:59"]
[BlackClock "0:00:02"]

1. e4 {[%clk 0:02:59]}  c5 {[%clk 0:02:59]} 2. Nf3 {[%clk 0:02:58]}  g6 {[%clk 0:02:59]} 3. d4 {[%clk 0:02:58]}  cxd4 {[%clk 0:03:00]} 4. Nxd4 {[%clk 0:02:59]}  Bg7 {[%clk 0:03:00]} 5. Nc3 {[%clk 0:03:00]}  Nc6 {[%clk 0:03:00]} 6. Be3 {[%clk 0:02:59]}  Nf6 {[%clk 0:03:01]} 7. f3 {[%clk 0:02:54]}  O-O {[%clk 0:03:00]} 8. Bc4 {[%clk 0:02:54]}  Qb6 {[%clk 0:02:59]} 9. Qd2 {[%clk 0:02:46]}  Ng4 {[%clk 0:02:57]} 10. Nxc6 {[%clk 0:02:37]}  Qxe3+ {[%clk 0:02:42]} 11. Qxe3 {[%clk 0:02:36]}  Nxe3 {[%clk 0:02:42]} 12. Nxe7+ {[%clk 0:02:36]}  Kh8 {[%clk 0:02:42]} 13. Bb3 {[%clk 0:02:34]}  Bxc3+ {[%clk 0:02:38]} 14. bxc3 {[%clk 0:02:34]}  Nxg2+ {[%clk 0:02:38]} 15. Kf2 {[%clk 0:02:34]}  Nf4 {[%clk 0:02:37]} 16. Ke3 {[%clk 0:02:34]}  Ng2+ {[%clk 0:02:32]} 17. Kd4 {[%clk 0:02:31]}  d6 {[%clk 0:02:23]} 18. h4 {[%clk 0:02:31]}  h5 {[%clk 0:02:05]} 19. Rag1 {[%clk 0:02:29]}  Nf4 {[%clk 0:02:04]} 20. Ke3 {[%clk 0:02:29]}  Ne6 {[%clk 0:01:56]} 21. f4 {[%clk 0:02:28]}  Nc5 {[%clk 0:01:50]} 22. f5 {[%clk 0:02:20]}  Re8 {[%clk 0:01:39]} 23. f6 {[%clk 0:02:16]}  Be6 {[%clk 0:01:28]} 24. Rg5 {[%clk 0:02:08]}  Bxb3 {[%clk 0:01:14]} 25. axb3 {[%clk 0:02:07]}  Nd7 {[%clk 0:01:14]} 26. Rhg1 {[%clk 0:02:04]}  Nxf6 {[%clk 0:01:13]} 27. Nxg6+ {[%clk 0:01:49]}  fxg6 {[%clk 0:01:13]} 28. Rxg6 {[%clk 0:01:50]}  Ng4+ {[%clk 0:01:09]} 29. Kd4 {[%clk 0:01:48]}  Kh7 {[%clk 0:01:03]} 30. Rg5 {[%clk 0:01:47]}  Kh6 {[%clk 0:00:59]} 31. Ra1 {[%clk 0:01:40]}  Re5 {[%clk 0:00:58]} 32. Ra5 {[%clk 0:01:35]}  b6 {[%clk 0:00:50]} 33. Rd5 {[%clk 0:01:34]}  Rd8 {[%clk 0:00:40]} 34. c4 {[%clk 0:01:33]}  Rxg5 {[%clk 0:00:35]} 35. Rxg5 {[%clk 0:01:33]}  Ne5 {[%clk 0:00:32]} 36. Kd5 {[%clk 0:01:32]}  Nf3 {[%clk 0:00:31]} 37. Rf5 {[%clk 0:01:25]}  Nxh4 {[%clk 0:00:29]} 38. Rf7 {[%clk 0:01:25]}  Ng6 {[%clk 0:00:24]} 39. Rxa7 {[%clk 0:01:24]}  h4 {[%clk 0:00:24]} 40. Kc6 {[%clk 0:01:21]}  h3 {[%clk 0:00:23]} 41. Ra1 {[%clk 0:01:21]}  Kg5 {[%clk 0:00:21]} 42. Kxb6 {[%clk 0:01:21]}  Nf4 {[%clk 0:00:16]} 43. Kc7 {[%clk 0:01:22]}  Rh8 {[%clk 0:00:15]} 44. Kxd6 {[%clk 0:01:21]}  h2 {[%clk 0:00:14]} 45. Rh1 {[%clk 0:01:22]}  Ne2 {[%clk 0:00:11]} 46. c5 {[%clk 0:01:21]}  Ng3 {[%clk 0:00:08]} 47. Rxh2 {[%clk 0:01:21]}  Rxh2 {[%clk 0:00:08]} 48. c4 {[%clk 0:01:20]}  Nxe4+ {[%clk 0:00:07]} 49. Kd5 {[%clk 0:01:21]}  Nf6+ {[%clk 0:00:06]} 50. Kd6 {[%clk 0:01:17]}  Rd2+ {[%clk 0:00:06]} 51. Ke6 {[%clk 0:01:16]}  Ne4 {[%clk 0:00:05]} 52. c6 {[%clk 0:01:16]}  Rd6+ {[%clk 0:00:04]} 53. Ke5 {[%clk 0:01:17]}  Rxc6 {[%clk 0:00:05]} 54. Kxe4 {[%clk 0:01:17]}  Rb6 {[%clk 0:00:04]} 55. c5 {[%clk 0:01:10]}  Rxb3 {[%clk 0:00:04]} 56. Ke5 {[%clk 0:01:11]}  Rc3 {[%clk 0:00:04]} 57. Kd6 {[%clk 0:01:09]}  Kf6 {[%clk 0:00:03]} 58. c6 {[%clk 0:01:10]}  Rd3+ {[%clk 0:00:03]} 59. Kc7 {[%clk 0:01:05]}  Ke6 {[%clk 0:00:03]} 60. Kb7 {[%clk 0:00:59]}  Rb3+ {[%clk 0:00:02]} 61. Kc7 {[%clk 0:00:59]}  Kd5 {[%clk 0:00:02]} 62. Kd7 {[%clk 0:00:59]} 1-0


[Site "https://www.chess.com"]

[Event "Titled Tuesday Blitz January 03 Early 2023"]
[White "Torres Dominguez, David"]
[Black "Tran, Thanh Tu"]
[WhiteFideId "2220857"]
[BlackFideId "12401404"]
[WhiteElo "1994"]
[BlackElo "2412"]
[Result "1-0"]
[Round "11"]
[TimeControl "180+2"]
[Date "2023.01.03"]
[WhiteClock "0:01:36"]
[BlackClock "0:00:39"]

1. e4 {[%clk 0:02:58]}  Nc6 {[%clk 0:02:59]} 2. Nc3 {[%clk 0:02:54]}  d6 {[%clk 0:03:00]} 3. Bc4 {[%clk 0:02:44]}  Nf6 {[%clk 0:02:59]} 4. d3 {[%clk 0:02:37]}  g6 {[%clk 0:02:58]} 5. f4 {[%clk 0:02:37]}  Bg7 {[%clk 0:02:58]} 6. Nf3 {[%clk 0:02:35]}  O-O {[%clk 0:02:58]} 7. O-O {[%clk 0:02:29]}  Na5 {[%clk 0:02:58]} 8. Bb3 {[%clk 0:02:29]}  c5 {[%clk 0:02:49]} 9. Qe1 {[%clk 0:02:25]}  Rb8 {[%clk 0:02:46]} 10. Qh4 {[%clk 0:02:21]}  b5 {[%clk 0:02:39]} 11. f5 {[%clk 0:02:18]}  c4 {[%clk 0:02:04]} 12. dxc4 {[%clk 0:02:15]}  bxc4 {[%clk 0:02:04]} 13. Ba4 {[%clk 0:02:11]}  e6 {[%clk 0:01:55]} 14. Bg5 {[%clk 0:02:07]}  Rxb2 {[%clk 0:01:50]} 15. Rad1 {[%clk 0:02:00]}  exf5 {[%clk 0:01:24]} 16. Nd5 {[%clk 0:01:55]}  fxe4 {[%clk 0:00:49]} 17. Nxf6+ {[%clk 0:01:43]}  Bxf6 {[%clk 0:00:49]} 18. Bxf6 {[%clk 0:01:43]}  Qb6+ {[%clk 0:00:39]} 19. Bd4 {[%clk 0:01:36]} 1-0


[Site "https://www.chess.com"]

[Event "Titled Tuesday Blitz January 03 Early 2023"]
[White "Mazurkiewicz, Michal"]
[Black "Janaszak, Dawid"]
[WhiteFideId "1124943"]
[BlackFideId "1119206"]
[WhiteElo "2145"]
[BlackElo "2316"]
[Result "1-0"]
[Round "11"]
[TimeControl "180+2"]
[Date "2023.01.03"]
[WhiteClock "0:00:12"]
[BlackClock "0:00:19"]

1. e4 {[%clk 0:03:00]}  e5 {[%clk 0:02:53]} 2. Nf3 {[%clk 0:03:00]}  Nc6 {[%clk 0:02:53]} 3. d3 {[%clk 0:03:00]}  Nf6 {[%clk 0:02:52]} 4. g3 {[%clk 0:03:01]}  Bc5 {[%clk 0:02:51]} 5. Bg2 {[%clk 0:03:01]}  O-O {[%clk 0:02:49]} 6. O-O {[%clk 0:03:01]}  d5 {[%clk 0:02:48]} 7. exd5 {[%clk 0:03:00]}  Nxd5 {[%clk 0:02:49]} 8. Nc3 {[%clk 0:03:00]}  Nde7 {[%clk 0:02:45]} 9. a3 {[%clk 0:02:56]}  Bg4 {[%clk 0:02:37]} 10. h3 {[%clk 0:02:49]}  Bh5 {[%clk 0:02:37]} 11. b4 {[%clk 0:02:47]}  Bb6 {[%clk 0:02:36]} 12. g4 {[%clk 0:02:35]}  Bg6 {[%clk 0:02:35]} 13. Na4 {[%clk 0:02:36]}  f5 {[%clk 0:02:32]} 14. c4 {[%clk 0:02:26]}  fxg4 {[%clk 0:02:24]} 15. hxg4 {[%clk 0:02:27]}  Bxd3 {[%clk 0:02:12]} 16. c5 {[%clk 0:02:26]}  Bxf1 {[%clk 0:02:12]} 17. Qxf1 {[%clk 0:02:22]}  Kh8 {[%clk 0:01:53]} 18. cxb6 {[%clk 0:01:59]}  axb6 {[%clk 0:01:51]} 19. Nc3 {[%clk 0:01:59]}  Ng6 {[%clk 0:01:48]} 20. Bg5 {[%clk 0:01:55]}  Qe8 {[%clk 0:01:48]} 21. Nd5 {[%clk 0:01:47]}  Qf7 {[%clk 0:01:44]} 22. Nd2 {[%clk 0:01:22]}  Nd4 {[%clk 0:01:35]} 23. Be3 {[%clk 0:01:01]}  Nf4 {[%clk 0:01:34]} 24. Nxf4 {[%clk 0:00:59]}  exf4 {[%clk 0:01:24]} 25. Bxd4 {[%clk 0:00:59]}  Rad8 {[%clk 0:01:13]} 26. Nf3 {[%clk 0:00:59]}  Qg6 {[%clk 0:01:08]} 27. Re1 {[%clk 0:00:38]}  Qxg4 {[%clk 0:01:07]} 28. Re7 {[%clk 0:00:38]}  Rxd4 {[%clk 0:00:33]} 29. Nxd4 {[%clk 0:00:38]}  f3 {[%clk 0:00:34]} 30. Nxf3 {[%clk 0:00:37]}  h6 {[%clk 0:00:32]} 31. Qe2 {[%clk 0:00:37]}  Rf6 {[%clk 0:00:28]} 32. Re8+ {[%clk 0:00:17]}  Kh7 {[%clk 0:00:28]} 33. Qe4+ {[%clk 0:00:17]}  Qxe4 {[%clk 0:00:27]} 34. Rxe4 {[%clk 0:00:18]}  Rc6 {[%clk 0:00:27]} 35. Re7 {[%clk 0:00:18]}  Rc1+ {[%clk 0:00:27]} 36. Kh2 {[%clk 0:00:18]}  Rc3 {[%clk 0:00:27]} 37. Ne5 {[%clk 0:00:17]}  h5 {[%clk 0:00:24]} 38. Be4+ {[%clk 0:00:14]}  Kh6 {[%clk 0:00:24]} 39. f4 {[%clk 0:00:14]}  h4 {[%clk 0:00:21]} 40. Re6+ {[%clk 0:00:14]}  g6 {[%clk 0:00:20]} 41. Rxg6+ {[%clk 0:00:13]}  Kh5 {[%clk 0:00:19]} 42. Rg5+ {[%clk 0:00:12]} 1-0


[Site "https://www.chess.com"]

[Event "Titled Tuesday Blitz January 03 Early 2023"]
[White "Gurevich, Dmitry"]
[Black "Sreyas Payyappat"]
[WhiteFideId "2000407"]
[BlackFideId "46674969"]
[WhiteElo "2393"]
[BlackElo "2076"]
[Result "0-1"]
[Round "11"]
[TimeControl "180+2"]
[Date "2023.01.03"]
[WhiteClock "0:00:25"]
[BlackClock "0:01:47"]

1. d4 {[%clk 0:03:00]}  Nf6 {[%clk 0:02:58]} 2. c4 {[%clk 0:03:00]}  c5 {[%clk 0:02:56]} 3. Nf3 {[%clk 0:03:00]}  e6 {[%clk 0:02:56]} 4. Nc3 {[%clk 0:02:58]}  cxd4 {[%clk 0:02:55]} 5. Nxd4 {[%clk 0:02:58]}  Nc6 {[%clk 0:02:56]} 6. a3 {[%clk 0:02:56]}  d5 {[%clk 0:02:53]} 7. cxd5 {[%clk 0:02:55]}  exd5 {[%clk 0:02:54]} 8. Bg5 {[%clk 0:02:50]}  Be6 {[%clk 0:02:51]} 9. e3 {[%clk 0:02:49]}  Bc5 {[%clk 0:02:51]} 10. Bb5 {[%clk 0:02:31]}  Rc8 {[%clk 0:02:46]} 11. O-O {[%clk 0:02:29]}  O-O {[%clk 0:02:45]} 12. Nb3 {[%clk 0:02:14]}  Bd6 {[%clk 0:02:41]} 13. h3 {[%clk 0:02:01]}  a6 {[%clk 0:02:37]} 14. Be2 {[%clk 0:01:58]}  h6 {[%clk 0:02:30]} 15. Bxf6 {[%clk 0:01:55]}  Qxf6 {[%clk 0:02:31]} 16. Bf3 {[%clk 0:01:47]}  Rfd8 {[%clk 0:02:29]} 17. Rc1 {[%clk 0:01:32]}  Qe5 {[%clk 0:02:18]} 18. Re1 {[%clk 0:01:27]}  Qh2+ {[%clk 0:02:16]} 19. Kf1 {[%clk 0:01:27]}  d4 {[%clk 0:02:14]} 20. Nd5 {[%clk 0:00:45]}  Ne5 {[%clk 0:02:05]} 21. Nf4 {[%clk 0:00:34]}  Rxc1 {[%clk 0:02:01]} 22. Nxc1 {[%clk 0:00:30]}  Bc4+ {[%clk 0:01:59]} 23. Ncd3 {[%clk 0:00:30]}  Nxf3 {[%clk 0:01:51]} 24. gxf3 {[%clk 0:00:27]}  Bxf4 {[%clk 0:01:48]} 25. exf4 {[%clk 0:00:27]}  Bxd3+ {[%clk 0:01:47]} 26. Qxd3 {[%clk 0:00:25]}  Qh1+ {[%clk 0:01:47]} 0-1


[Site "https://www.chess.com"]

[Event "Titled Tuesday Blitz January 03 Early 2023"]
[White "Pandey Srishti"]
[Black "Iljin, Timofey"]
[WhiteFideId "35093290"]
[BlackFideId "14110180"]
[WhiteElo "2188"]
[BlackElo "2329"]
[Result "0-1"]
[Round "11"]
[TimeControl "180+2"]
[Date "2023.01.03"]
[WhiteClock "0:00:01"]
[BlackClock "0:01:59"]

1. d4 {[%clk 0:01:48]}  d5 {[%clk 0:03:00]} 2. c4 {[%clk 0:01:45]}  e6 {[%clk 0:03:01]} 3. Nf3 {[%clk 0:01:38]}  dxc4 {[%clk 0:03:01]} 4. e4 {[%clk 0:01:34]}  b5 {[%clk 0:03:01]} 5. a4 {[%clk 0:01:33]}  c6 {[%clk 0:03:01]} 6. Nc3 {[%clk 0:01:11]}  Bb4 {[%clk 0:03:00]} 7. Bd2 {[%clk 0:01:07]}  a6 {[%clk 0:02:58]} 8. b3 {[%clk 0:01:03]}  Nf6 {[%clk 0:02:48]} 9. axb5 {[%clk 0:00:58]}  cxb5 {[%clk 0:02:45]} 10. bxc4 {[%clk 0:00:55]}  Bxc3 {[%clk 0:02:41]} 11. Bxc3 {[%clk 0:00:54]}  Nxe4 {[%clk 0:02:42]} 12. Bb4 {[%clk 0:00:51]}  Nc6 {[%clk 0:02:42]} 13. Bd3 {[%clk 0:00:37]}  Nxf2 {[%clk 0:02:38]} 14. Kxf2 {[%clk 0:00:35]}  Nxb4 {[%clk 0:02:38]} 15. cxb5 {[%clk 0:00:34]}  Nxd3+ {[%clk 0:02:35]} 16. Qxd3 {[%clk 0:00:34]}  O-O {[%clk 0:02:36]} 17. bxa6 {[%clk 0:00:34]}  Qd6 {[%clk 0:02:33]} 18. Rhc1 {[%clk 0:00:20]}  Bxa6 {[%clk 0:02:32]} 19. Qe3 {[%clk 0:00:20]}  Bb7 {[%clk 0:02:31]} 20. Ne5 {[%clk 0:00:19]}  Qd5 {[%clk 0:02:30]} 21. Nf3 {[%clk 0:00:16]}  Ra2+ {[%clk 0:02:22]} 22. Rxa2 {[%clk 0:00:16]}  Qxa2+ {[%clk 0:02:23]} 23. Kg1 {[%clk 0:00:16]}  Qa8 {[%clk 0:02:24]} 24. Nh4 {[%clk 0:00:12]}  Rd8 {[%clk 0:02:21]} 25. Rd1 {[%clk 0:00:11]}  h6 {[%clk 0:02:21]} 26. h3 {[%clk 0:00:10]}  Bd5 {[%clk 0:02:22]} 27. Rd2 {[%clk 0:00:09]}  Qa1+ {[%clk 0:02:18]} 28. Kh2 {[%clk 0:00:09]}  Qc1 {[%clk 0:02:19]} 29. Qf2 {[%clk 0:00:09]}  g5 {[%clk 0:02:04]} 30. Nf3 {[%clk 0:00:08]}  Bxf3 {[%clk 0:02:05]} 31. gxf3 {[%clk 0:00:05]}  Rd5 {[%clk 0:02:03]} 32. f4 {[%clk 0:00:01]}  Kg7 {[%clk 0:01:59]} 0-1


[Site "https://www.chess.com"]

[Event "Titled Tuesday Blitz January 03 Early 2023"]
[White "ArchibaldCerveza29"]
[Black "Topalov, Aleksandar"]
[BlackFideId "925659"]
[WhiteElo "2510"]
[BlackElo "2233"]
[Result "1-0"]
[Round "11"]
[TimeControl "180+2"]
[Date "2023.01.03"]
[WhiteClock "0:00:17"]
[BlackClock "0:00:01"]

1. d4 {[%clk 0:03:00]}  Nf6 {[%clk 0:02:44]} 2. Nf3 {[%clk 0:02:59]}  g6 {[%clk 0:02:44]} 3. b3 {[%clk 0:02:58]}  Bg7 {[%clk 0:02:44]} 4. Bb2 {[%clk 0:02:59]}  O-O {[%clk 0:02:44]} 5. e3 {[%clk 0:03:00]}  d6 {[%clk 0:02:44]} 6. Be2 {[%clk 0:03:00]}  Nbd7 {[%clk 0:02:45]} 7. O-O {[%clk 0:03:00]}  e5 {[%clk 0:02:45]} 8. dxe5 {[%clk 0:03:01]}  Ng4 {[%clk 0:02:45]} 9. c4 {[%clk 0:03:02]}  Ngxe5 {[%clk 0:02:44]} 10. Nxe5 {[%clk 0:03:03]}  Nxe5 {[%clk 0:02:45]} 11. Nc3 {[%clk 0:03:03]}  Re8 {[%clk 0:02:44]} 12. Qd2 {[%clk 0:03:04]}  a5 {[%clk 0:02:41]} 13. Rad1 {[%clk 0:03:04]}  Be6 {[%clk 0:02:29]} 14. h3 {[%clk 0:02:57]}  a4 {[%clk 0:02:18]} 15. f4 {[%clk 0:02:39]}  Nc6 {[%clk 0:02:00]} 16. Nxa4 {[%clk 0:02:34]}  Bxb2 {[%clk 0:01:49]} 17. Qxb2 {[%clk 0:02:28]}  Qh4 {[%clk 0:01:42]} 18. Rf3 {[%clk 0:02:20]}  h5 {[%clk 0:01:38]} 19. Nc3 {[%clk 0:01:53]}  Bg4 {[%clk 0:01:37]} 20. hxg4 {[%clk 0:01:54]}  hxg4 {[%clk 0:01:37]} 21. g3 {[%clk 0:01:54]}  Qh3 {[%clk 0:01:36]} 22. Rf2 {[%clk 0:01:53]}  Qxg3+ {[%clk 0:01:36]} 23. Rg2 {[%clk 0:01:43]}  Qxe3+ {[%clk 0:01:36]} 24. Kf1 {[%clk 0:01:34]}  Qxf4+ {[%clk 0:01:34]} 25. Rf2 {[%clk 0:01:32]}  Qg3 {[%clk 0:00:57]} 26. Nd5 {[%clk 0:01:29]}  Re5 {[%clk 0:00:45]} 27. Nf6+ {[%clk 0:01:25]}  Kf8 {[%clk 0:00:32]} 28. Nd7+ {[%clk 0:01:11]}  Ke7 {[%clk 0:00:32]} 29. Nxe5 {[%clk 0:01:11]}  Nxe5 {[%clk 0:00:32]} 30. Qd4 {[%clk 0:00:19]}  Rh8 {[%clk 0:00:30]} 31. Rg2 {[%clk 0:00:20]}  Rh1+ {[%clk 0:00:22]} 32. Rg1 {[%clk 0:00:20]}  Qh3+ {[%clk 0:00:22]} 33. Ke1 {[%clk 0:00:20]}  Qh4+ {[%clk 0:00:10]} 34. Kd2 {[%clk 0:00:19]}  Rh2 {[%clk 0:00:08]} 35. Qe3 {[%clk 0:00:17]}  Kd8 {[%clk 0:00:07]} 36. Kc1 {[%clk 0:00:17]}  g3 {[%clk 0:00:05]} 37. c5 {[%clk 0:00:17]}  g2 {[%clk 0:00:02]} 38. cxd6 {[%clk 0:00:17]}  cxd6 {[%clk 0:00:01]} 39. Qxe5 {[%clk 0:00:17]} 1-0


[Site "https://www.chess.com"]

[Event "Titled Tuesday Blitz January 03 Early 2023"]
[White "Reprintsev, Alexander"]
[Black "Forgacs, Attila Jr."]
[WhiteFideId "14100541"]
[BlackFideId "773654"]
[WhiteElo "2253"]
[BlackElo "2264"]
[Result "0-1"]
[Round "11"]
[TimeControl "180+2"]
[Date "2023.01.03"]
[WhiteClock "0:01:32"]
[BlackClock "0:00:51"]

1. e4 {[%clk 0:02:50]}  e5 {[%clk 0:02:59]} 2. f4 {[%clk 0:02:49]}  exf4 {[%clk 0:03:00]} 3. Bc4 {[%clk 0:02:48]}  Qh4+ {[%clk 0:02:58]} 4. Kf1 {[%clk 0:02:47]}  d6 {[%clk 0:02:57]} 5. Nf3 {[%clk 0:02:47]}  Qh6 {[%clk 0:02:53]} 6. Nc3 {[%clk 0:02:46]}  Nf6 {[%clk 0:02:51]} 7. Qe2 {[%clk 0:02:42]}  Nc6 {[%clk 0:02:46]} 8. d4 {[%clk 0:02:41]}  Nh5 {[%clk 0:02:44]} 9. Kf2 {[%clk 0:02:27]}  Ng3 {[%clk 0:02:28]} 10. hxg3 {[%clk 0:02:20]}  Qxh1 {[%clk 0:02:29]} 11. gxf4 {[%clk 0:02:17]}  Bg4 {[%clk 0:02:24]} 12. Bb5 {[%clk 0:02:14]}  Bxf3 {[%clk 0:02:07]} 13. Qxf3 {[%clk 0:02:13]}  a6 {[%clk 0:02:01]} 14. Bxc6+ {[%clk 0:02:12]}  bxc6 {[%clk 0:02:02]} 15. b3 {[%clk 0:02:09]}  Be7 {[%clk 0:01:58]} 16. Bb2 {[%clk 0:02:08]}  Qh4+ {[%clk 0:01:56]} 17. Kg1 {[%clk 0:02:06]}  O-O {[%clk 0:01:56]} 18. Ne2 {[%clk 0:01:56]}  f5 {[%clk 0:01:45]} 19. e5 {[%clk 0:01:54]}  d5 {[%clk 0:01:41]} 20. c4 {[%clk 0:01:53]}  Rad8 {[%clk 0:01:39]} 21. Rc1 {[%clk 0:01:53]}  g5 {[%clk 0:01:04]} 22. fxg5 {[%clk 0:01:49]}  Bxg5 {[%clk 0:01:03]} 23. Rf1 {[%clk 0:01:46]}  dxc4 {[%clk 0:01:02]} 24. bxc4 {[%clk 0:01:45]}  c5 {[%clk 0:00:56]} 25. Qc6 {[%clk 0:01:32]}  Be3+ {[%clk 0:00:51]} 0-1


[Site "https://www.chess.com"]